bitfinex-derivatives/quotes_SOLF0:USTF0_20250914
["timestamp","ask_amount","ask_price","bid_price","bid_amount"]
[1757891161023,1.34818912,242.23,242.06,7.18]
[1757891161630,6.08,242.22,242.06,7.18]
[1757891162233,6.08,242.22,242.06,3.7162]
[1757891162433,6.08,242.22,242.07,7.18]
[1757891162927,6.08,242.22,242.09,4.58309878]
[1757891163133,6.08,242.22,242.1,7.18]
[1757891166036,0.86392133,242.21,242.1,8.04392133]
[1757891171841,6.08,242.22,242.1,8.04392133]
[1757891172040,0.86392133,242.25,242.14,6.74]
[1757891172234,6.09,242.24,242.14,6.74]
[1757891174541,6.09,242.28,242.19,0.86392133]
[1757891174747,6.09,242.28,242.2,6.74]
[1757891175742,6.09,242.28,242.22,0.86392133]
[1757891175941,6.09,242.28,242.22,7.60392133]
[1757891176142,6.09,242.32,242.22,7.60392133]
[1757891178344,6.09,242.32,242.25,0.86392133]
[1757891178546,6.09,242.32,242.26,6.74]
[1757891179743,6.09,242.37,242.29,6.74]
[1757891181245,0.86392133,242.39,242.29,6.74]
[1757891181445,6.09,242.38,242.29,6.74]
[1757891183548,6.09,242.35,242.29,6.74]
[1757891183745,0.86392133,242.3,242.25,6.74]
[1757891184050,6.95392133,242.3,242.2,6.74]
[1757891187548,0.86392133,242.27,242.2,6.74]
[1757891188443,6.95392133,242.27,242.2,6.74]
[1757891192251,6.08,242.39,242.2,6.74]
[1757891192456,6.94392133,242.33,242.23,6.62]
[1757891197763,0.86392133,242.37,242.23,7.48392133]
[1757891197967,6.94392133,242.37,242.27,6.62]
[1757891203974,6.94392133,242.37,242.3,6.57]
[1757891204273,6.08,242.37,242.3,6.57]
[1757891210877,6.94392133,242.37,242.24,6.57]
[1757891211077,6.94392133,242.37,242.24,7.43392133]
[1757891212679,6.06,242.3,242.2,6.57]
[1757891216980,6.06,242.3,242.22,6.7]
[1757891220582,6.07,242.35,242.25,6.7]
[1757891223589,6.07,242.39,242.31,6.7]
[1757891224990,6.07,242.39,242.33,0.86392133]
[1757891226088,6.07,242.39,242.31,6.7]
[1757891226287,6.07,242.38,242.27,6.7]
[1757891226483,6.07,242.35,242.23,12.13686707]
[1757891226788,0.86392133,242.36,242.23,12.13686707]
[1757891226982,6.07,242.35,242.23,12.13686707]
[1757891227789,6.07,242.35,242.23,11.27294574]
[1757891228786,6.07,242.35,242.24,6.7]
[1757891231391,6.07,242.39,242.24,8.04852278]
[1757891231590,6.07,242.39,242.26,4.57294574]
[1757891231790,6.07,242.39,242.27,6.96]
[1757891232486,6.07,242.39,242.28,1.34852278]
[1757891232688,6.07,242.46,242.3,6.96]
[1757891232890,6.07,242.46,242.31,6.96]
[1757891233593,6.07,242.46,242.32,1.34852278]
[1757891233795,6.07,242.46,242.33,6.96]
[1757891234588,6.07,242.46,242.34,6.96]
[1757891234888,6.07,242.46,242.37,6.96]
[1757891237895,278.68852278,242.52,242.37,6.96]
[1757891237896,6.07,242.5,242.37,6.96]
[1757891240496,6.07,242.5,242.37,4.57294574]
[1757891240701,6.07,242.5,242.38,6.96]
[1757891243003,6.07,242.47,242.34,6.96]
[1757891243998,1.34852278,242.44,242.3,288.69294574]
[1757891244200,1.34852278,242.44,242.3,284.12]
[1757891244402,6.07,242.39,242.3,284.12]
[1757891244896,1.34852278,242.4,242.25,11.53294574]
[1757891245207,6.07,242.39,242.25,11.53294574]
[1757891248106,6.07,242.39,242.25,6.96]
[1757891249603,6.07,242.43,242.25,8.30852278]
[1757891249907,6.07,242.43,242.28,6.96]
[1757891250608,6.07,242.43,242.3,6.96]
[1757891251204,6.07,242.47,242.3,6.96]
[1757891251400,6.07,242.47,242.3,11.53294574]
[1757891251606,1.34852278,242.4,242.3,6.96]
[1757891251906,6.07,242.39,242.3,6.96]
[1757891259817,6.07,242.44,242.3,6.96]
[1757891260116,6.07,242.44,242.32,6.96]
[1757891260313,1.34852278,242.5,242.32,6.96]
[1757891260514,6.07,242.49,242.33,6.96]
[1757891261617,6.07,242.49,242.34,7.1]
[1757891263821,6.07,242.49,242.36,7.1]
[1757891264625,6.07,242.49,242.37,7.1]
[1757891264826,6.07,242.49,242.36,4.57294574]
[1757891264827,6.07,242.49,242.4,7.1]
[1757891265328,6.07,242.53,242.4,7.1]
[1757891268325,44.22852278,242.58,242.37,7.1]
[1757891268326,1.34852278,242.46,242.37,7.1]
[1757891268529,6.07,242.45,242.37,7.1]
[1757891271740,6.07,242.45,242.33,7.1]
[1757891271932,1.34852278,242.42,242.33,7.1]
[1757891272133,6.07,242.41,242.33,7.1]
[1757891274639,6.06,242.46,242.33,7.1]
[1757891274936,6.06,242.41,242.33,7.1]
[1757891275240,6.06,242.41,242.28,6.52]
[1757891277541,6.06,242.41,242.28,11.09294574]
[1757891278637,6.06,242.41,242.28,6.52]
[1757891280744,6.06,242.45,242.29,6.52]
[1757891281444,6.06,242.45,242.3,1.34852278]
[1757891281743,6.06,242.45,242.31,6.52]
[1757891284645,6.06,242.45,242.35,6.52]
[1757891285049,6.06,242.51,242.35,6.52]
[1757891286450,6.06,242.47,242.33,4.57294574]
[1757891286646,6.06,242.47,242.32,4.57294574]
[1757891287344,6.06,242.47,242.31,6.52]
[1757891287850,6.06,242.47,242.32,0.86246632]
[1757891287851,0.86246632,242.43,242.32,0.86246632]
[1757891288150,6.06,242.42,242.32,0.86246632]
[1757891288851,6.06,242.42,242.31,6.52]
[1757891290356,0.86246632,242.37,242.29,4.57294574]
[1757891290650,0.86246632,242.37,242.08,12.38]
[1757891290651,6.06,242.33,242.22,5.43541206]
[1757891290854,6.06,242.33,242.22,4.57294574]
[1757891291152,0.86246632,242.31,242.21,11.09294574]
[1757891291454,0.86246632,242.32,242.21,11.09294574]
[1757891292250,0.86246632,242.32,242.21,6.52]
[1757891292754,6.06,242.31,242.21,6.52]
[1757891293056,0.86246632,242.29,242.21,6.52]
[1757891293354,0.86246632,242.27,242.16,7.1]
[1757891294047,15.88620995,242.45,242.16,7.1]
[1757891294048,6.06,242.32,242.2,0.86246632]
[1757891294245,6.06,242.36,242.24,7.1]
[1757891297357,6.06,242.36,242.26,0.86246632]
[1757891297754,6.06,242.36,242.27,7.1]
[1757891298058,6.06,242.39,242.27,7.1]
[1757891299454,6.06,242.29,242.15,4.57294574]
[1757891299658,6.06,242.27,242.13,7.1]
[1757891300467,32.04,242.26,242.13,7.1]
[1757891300760,6.06,242.25,242.13,7.1]
[1757891304362,8.30687491,242.25,242.13,7.1]
[1757891304558,9.0,242.24,242.13,7.1]
[1757891304758,15.06,242.23,242.13,7.1]
[1757891305459,15.06,242.23,242.05,7.1]
[1757891305663,77.94,242.23,242.05,7.1]
[1757891305863,15.06,242.23,242.05,7.1]
[1757891310558,49.32,242.23,242.05,7.1]
[1757891310965,15.06,242.23,242.05,7.1]
[1757891314069,6.06,242.23,242.05,7.1]
[1757891316973,2.24687491,242.22,242.05,7.1]
[1757891317172,6.06,242.21,242.05,7.1]
[1757891318162,6.06,242.16,242.0,7.1]
[1757891318367,6.06,242.11,241.95,7.1]
[1757891318567,2.24687491,242.07,241.89,7.1]
[1757891318873,6.06,242.06,241.89,7.1]
[1757891319871,0.86528909,242.02,241.89,7.96528909]
[1757891320071,0.86528909,242.05,241.93,7.1]
[1757891320273,0.86528909,242.03,241.93,7.1]
[1757891321773,6.06,242.06,241.93,7.1]
[1757891322369,2.25355165,242.08,241.88,39.3]
[1757891322370,6.07,242.02,241.89,6.82]
[1757891323974,6.07,242.07,241.89,6.82]
[1757891324175,6.07,242.07,241.76,356.33294574]
[1757891324176,6.07,242.07,241.92,6.82]
[1757891325177,9.0,242.06,241.92,6.82]
[1757891325372,6.07,242.05,241.92,6.82]
[1757891327380,6.07,242.05,241.88,6.82]
[1757891328574,6.07,242.05,241.89,6.82]
[1757891330077,6.07,242.05,241.92,2.25355165]
[1757891330285,6.07,242.05,241.93,6.82]
[1757891330579,6.07,242.09,241.93,6.82]
[1757891332777,6.07,242.09,241.96,2.25355165]
[1757891332981,6.07,242.09,241.97,6.82]
[1757891336181,11.25355165,242.15,241.97,6.82]
[1757891336182,6.06,242.14,241.97,6.82]
[1757891337383,6.06,242.14,241.98,3.7175]
[1757891337587,6.06,242.14,241.99,7.15]
[1757891338086,6.06,242.14,242.0,7.15]
[1757891342790,8.31355165,242.14,242.0,7.15]
[1757891344093,6.06,242.14,242.0,7.15]
[1757891346596,6.06,242.11,242.0,7.15]
[1757891347797,0.86511948,242.05,241.96,7.15]
[1757891349499,6.06,242.08,241.96,7.15]
[1757891349693,0.86511948,242.05,241.96,7.15]
[1757891349898,7.41166911,242.08,241.96,7.15]
[1757891355099,1.35166911,242.05,241.92,6.69]
[1757891355495,6.08,242.04,241.92,6.69]
[1757891356798,15.08,242.04,241.92,6.69]
[1757891360301,6.08,242.04,241.92,6.69]
[1757891366409,15.08,242.04,241.92,6.69]
[1757891368307,9.0,242.04,241.88,11.26294574]
[1757891368506,6.08,242.03,241.88,11.26294574]
[1757891368902,9.0,242.04,241.88,11.26294574]
[1757891369105,6.08,242.0,241.88,6.69]
[1757891370114,15.08,242.0,241.88,6.69]
[1757891370415,9.0,241.99,241.88,6.69]
[1757891370713,6.08,241.98,241.88,6.69]
[1757891373616,9.0,241.97,241.88,6.69]
[1757891373814,6.08,241.96,241.88,6.69]
[1757891377812,6.08,242.04,241.88,8.04166911]
[1757891379407,6.08,242.04,241.9,6.69]
[1757891379815,6.08,242.01,241.9,6.69]
[1757891381818,6.08,242.01,241.81,4.57294574]
[1757891382012,6.09,241.97,241.82,6.88]
[1757891383516,6.09,241.97,241.84,1.35166911]
[1757891383717,9.0,242.01,241.85,6.88]
[1757891384016,6.09,242.0,241.85,6.88]
[1757891387123,6.09,241.97,241.85,6.88]
[1757891387629,6.09,241.93,241.85,6.88]
[1757891387922,6.09,241.89,241.77,4.57294574]
[1757891388124,6.09,241.85,241.75,6.88]
[1757891392128,1.35166911,241.91,241.75,6.88]
[1757891392327,6.09,241.9,241.75,6.88]
[1757891395529,6.09,241.9,241.75,19.21881199]
[1757891395727,6.09,241.9,241.76,6.65]
[1757891396929,7.43166911,241.98,241.79,6.65]
[1757891400433,1.35166911,241.94,241.79,6.65]
[1757891400634,6.08,241.89,241.79,6.65]
[1757891411742,6.08,241.89,241.76,7.07]
[1757891411743,0.86669063,241.85,241.76,7.07]
[1757891411944,6.08,241.84,241.76,7.07]
[1757891414041,0.86669063,241.82,241.76,7.07]
[1757891416045,0.86669063,241.85,241.76,7.07]
[1757891417047,6.94669063,241.85,241.76,7.07]
[1757891420247,0.86669063,241.79,241.69,7.07]
[1757891420454,6.08,241.78,241.69,7.07]
[1757891420647,0.86669063,241.76,241.69,7.07]
[1757891421249,6.08,241.75,241.65,7.07]
[1757891421856,0.86669063,241.8,241.68,7.07]
[1757891422361,6.94669063,241.8,241.68,7.07]
[1757891423755,0.86669063,241.77,241.68,7.07]
[1757891424662,6.08,241.8,241.68,7.07]
[1757891424865,15.08,241.84,241.68,7.93669063]
[1757891425062,0.86669063,241.83,241.72,7.07]
[1757891425467,0.86669063,241.8,241.72,7.07]
[1757891426565,6.94669063,241.8,241.66,5.43963637]
[1757891426764,6.94669063,241.8,241.67,7.07]
[1757891428663,0.86669063,241.77,241.67,7.07]
[1757891433874,6.08,241.8,241.67,7.93669063]
[1757891434075,9.86669063,241.82,241.71,7.07]
[1757891435176,6.08,241.84,241.71,7.07]
[1757891435373,6.94669063,241.88,241.74,7.07]
[1757891436774,0.86669063,241.85,241.74,7.07]
[1757891437678,6.94669063,241.88,241.77,7.07]
[1757891438874,0.86669063,241.85,241.77,7.07]
[1757891439776,0.86669063,241.82,241.72,7.07]
[1757891439975,32.18,241.91,241.72,7.07]
[1757891439976,6.08,241.78,241.72,7.07]
[1757891440176,6.08,241.78,241.68,4.57294574]
[1757891440177,0.86669063,241.76,241.68,7.07]
[1757891441281,0.86669063,241.75,241.68,7.07]
[1757891442881,0.86669063,241.78,241.68,7.07]
[1757891443382,6.08,241.77,241.68,7.07]
[1757891444984,0.86669063,241.78,241.68,7.07]
[1757891445186,6.08,241.82,241.68,7.93669063]
[1757891445381,0.86669063,241.79,241.69,7.14]
[1757891450177,6.94669063,241.79,241.69,7.14]
[1757891451685,0.86669063,241.76,241.69,7.14]
[1757891452184,0.86669063,241.8,241.69,7.14]
[1757891452787,6.08,241.79,241.69,7.14]
[1757891453988,0.86669063,241.77,241.69,7.14]
[1757891457090,6.08,241.76,241.66,4.57294574]
[1757891457391,6.94669063,241.76,241.62,6.84]
[1757891457689,6.94669063,241.76,241.62,7.70669063]
[1757891458090,6.08,241.76,241.62,7.70669063]
[1757891458388,0.86669063,241.74,241.62,7.70669063]
[1757891459583,6.08,241.76,241.66,6.84]
[1757891459783,0.86669063,241.8,241.68,0.86669063]
[1757891459985,6.08,241.79,241.69,6.84]
[1757891460690,6.08,241.86,241.71,0.86669063]
[1757891460991,0.86669063,241.84,241.72,6.84]
[1757891461792,6.08,241.83,241.72,6.84]
[1757891461991,6.94669063,241.77,241.67,6.84]
[1757891462186,6.08,241.77,241.67,6.84]
[1757891462390,6.08,241.73,241.62,12.27963637]
[1757891462592,6.08,241.73,241.62,7.70669063]
[1757891463994,6.08,241.78,241.63,6.84]
[1757891464196,6.94669063,241.78,241.65,0.86669063]
[1757891464496,0.86669063,241.79,241.66,6.84]
[1757891464796,0.86669063,241.79,241.67,6.84]
[1757891465392,6.94669063,241.79,241.67,6.84]
[1757891465594,6.08,241.79,241.67,6.84]
[1757891465794,6.94669063,241.75,241.67,6.84]
[1757891466798,6.08,241.75,241.67,6.84]
[1757891468906,29.54,241.8,241.67,6.84]
[1757891469102,0.86669063,241.78,241.67,6.84]
[1757891469402,6.08,241.77,241.67,6.84]
[1757891469696,6.08,241.74,241.63,6.84]
[1757891475100,6.08,241.72,241.63,6.84]
[1757891475597,7.43550309,241.72,241.63,6.84]
[1757891476102,7.43550309,241.72,241.57,6.91]
[1757891478596,6.08,241.72,241.57,6.91]
[1757891478903,7.43550309,241.72,241.57,6.91]
[1757891479203,7.43550309,241.72,241.57,19.4156353]
[1757891479204,6.08,241.71,241.57,19.4156353]
[1757891479405,6.08,241.71,241.57,6.91]
[1757891480303,1.35550309,241.64,241.51,6.91]
[1757891480603,6.08,241.63,241.55,12.67051359]
[1757891481204,6.08,241.63,241.51,6.91]
[1757891481706,6.08,241.63,241.52,6.91]
[1757891483007,7.43550309,241.63,241.52,6.91]
[1757891483612,1.35550309,241.59,241.52,6.91]
[1757891483909,7.43550309,241.59,241.52,6.91]
[1757891484100,7.43550309,241.59,241.46,6.91]
[1757891484301,7.43550309,241.59,241.46,19.37787873]
[1757891484506,1.35550309,241.59,241.46,6.91]
[1757891485100,1.35550309,241.63,241.47,6.91]
[1757891485300,6.08,241.65,241.48,1.35550309]
[1757891485507,6.08,241.65,241.49,6.91]
[1757891487007,1.35550309,241.63,241.49,6.91]
[1757891487207,6.08,241.62,241.49,6.91]
[1757891488105,6.08,241.58,241.49,6.91]
[1757891488711,6.08,241.58,241.46,12.61957739]
[1757891489011,6.08,241.58,241.45,6.91]
[1757891489612,1.35550309,241.59,241.45,6.91]
[1757891489815,15.18,241.62,241.46,6.91]
[1757891491010,6.08,241.58,241.46,6.91]
[1757891491312,7.43550309,241.58,241.46,6.91]
[1757891491913,6.08,241.58,241.46,6.91]
[1757891492111,6.08,241.57,241.46,6.91]
[1757891497817,6.08,241.53,241.38,6.91]
[1757891498022,6.08,241.49,241.38,6.91]
[1757891502823,7.43550309,241.49,241.38,6.91]
[1757891503923,6.09,241.55,241.38,8.26550309]
[1757891504117,6.09,241.55,241.38,6.91]
[1757891504324,6.09,241.55,241.38,8.26550309]
[1757891505823,1.35550309,241.57,241.38,8.26550309]
[1757891506023,311.71,241.6,241.43,6.54]
[1757891507029,387.23,241.6,241.43,6.54]
[1757891508931,6.09,241.6,241.37,6.54]
[1757891509127,6.09,241.6,241.47,6.54]
[1757891509322,6.09,241.64,241.47,6.54]
[1757891509529,6.09,241.64,241.5,1.35550309]
[1757891509726,6.09,241.64,241.51,6.54]
[1757891521038,9.0,241.63,241.51,6.54]
[1757891521239,9.0,241.63,241.46,6.71]
[1757891521240,6.09,241.6,241.46,6.71]
[1757891522443,1.35550309,241.57,241.46,6.71]
[1757891522642,6.09,241.56,241.46,6.71]
[1757891524343,6.09,241.56,241.41,6.71]
[1757891526748,6.09,241.52,241.41,6.71]
[1757891530434,1.35550309,241.56,241.41,6.71]
[1757891530744,7.44550309,241.56,241.42,6.71]
[1757891533644,24.54550309,241.56,241.42,6.71]
[1757891533846,0.86911481,241.5,241.42,6.71]
[1757891535735,6.1,241.49,241.42,6.71]
[1757891536137,6.1,241.46,241.37,6.53]
[1757891536342,0.86911481,241.44,241.37,6.53]
[1757891536746,0.86911481,241.41,241.32,6.53]
[1757891537042,6.1,241.4,241.31,12.66199336]
[1757891537241,0.86911481,241.38,241.29,6.53]
[1757891538248,6.96911481,241.38,241.29,6.53]
[1757891538445,0.86911481,241.31,241.24,11.10294574]
[1757891538654,0.86911481,241.3,241.24,6.53]
[1757891539943,6.1,241.34,241.24,6.53]
[1757891540246,0.86911481,241.33,241.24,6.53]
[1757891540851,6.28,241.37,241.2,12.6026255]
[1757891540852,6.96911481,241.3,241.2,19.1326255]
[1757891541544,0.86911481,241.27,241.2,19.1326255]
[1757891542050,0.86911481,241.27,241.2,6.53]
[1757891542651,0.86911481,241.24,241.2,6.53]
[1757891542849,0.86911481,241.27,241.15,6.53]
[1757891543149,6.96911481,241.3,241.18,6.53]
[1757891544052,60.32911481,241.3,241.18,6.53]
[1757891545145,6.96911481,241.3,241.18,6.53]
[1757891546353,6.1,241.3,241.18,7.39911481]
[1757891546556,0.86911481,241.32,241.18,7.39911481]
[1757891546753,0.86911481,241.29,241.18,6.53]
[1757891549252,6.1,241.28,241.18,6.53]
[1757891556356,0.86911481,241.26,241.18,6.53]
[1757891556859,6.09,241.25,241.18,6.53]
[1757891557664,6.09,241.25,241.15,12.14448168]
[1757891557866,6.09,241.25,241.14,6.49]
[1757891559457,0.86911481,241.24,241.14,6.49]
[1757891560361,0.86911481,241.27,241.15,6.49]
[1757891560958,6.09,241.17,241.04,6.49]
[1757891561161,0.86911481,241.13,241.04,6.49]
[1757891562163,6.11,241.26,241.04,6.49]
[1757891562358,12.4,241.31,241.04,6.49]
[1757891562359,0.86911481,241.11,241.04,6.49]
[1757891562764,0.86911481,241.08,241.04,6.49]
[1757891563161,0.86911481,241.08,240.97,0.86911481]
[1757891563367,0.86911481,241.08,240.98,6.83]
[1757891563768,0.86911481,241.08,240.98,19.06392007]
[1757891564172,0.86911481,241.08,240.98,12.23392007]
[1757891564466,0.86911481,241.08,240.99,6.83]
[1757891565671,6.11,241.09,240.99,6.83]
[1757891565867,0.86911481,241.09,240.99,6.83]
[1757891566075,0.86911481,241.12,240.99,6.83]
[1757891566960,6.11,241.22,241.0,0.86911481]
[1757891567166,0.86911481,241.17,241.04,6.83]
[1757891568869,278.5,241.23,241.07,6.83]
[1757891569066,0.86911481,241.2,241.07,6.83]
[1757891569266,278.5,241.23,241.07,6.83]
[1757891569565,278.5,241.23,241.03,12.4]
[1757891569566,6.11,241.24,241.09,0.86911481]
[1757891569866,0.86911481,241.25,241.13,6.83]
[1757891570571,6.11,241.26,241.13,6.83]
[1757891570870,0.86911481,241.23,241.13,6.83]
[1757891572675,6.97911481,241.26,241.13,6.83]
[1757891573176,6.97911481,241.26,241.15,0.86911481]
[1757891573376,6.11,241.26,241.16,6.83]
[1757891574167,0.86911481,241.27,241.16,6.83]
[1757891576574,6.11,241.3,241.19,7.04]
[1757891576974,0.86911481,241.26,241.19,7.04]
[1757891579175,0.86911481,241.28,241.19,7.04]
[1757891582887,6.11,241.3,241.19,7.04]
[1757891583090,0.86911481,241.29,241.19,7.04]
[1757891585583,0.86911481,241.23,241.11,7.04]
[1757891585780,6.1,241.22,241.11,7.04]
[1757891585983,6.1,241.22,241.11,7.90911481]
[1757891586387,6.1,241.22,241.15,7.04]
[1757891587785,0.86911481,241.21,241.15,7.04]
[1757891588386,6.96911481,241.18,241.09,3.47132113]
[1757891588692,6.96911481,241.18,241.06,11.61294574]
[1757891588693,0.86911481,241.17,241.06,10.51132113]
[1757891588995,6.1,241.18,241.06,10.51132113]
[1757891589196,0.86911481,241.17,241.06,10.51132113]
[1757891591292,0.86911481,241.17,241.06,3.47132113]
[1757891591494,0.86911481,241.2,241.1,3.47132113]
[1757891591693,0.86911481,241.2,241.12,7.0]
[1757891595093,0.86911481,241.21,241.12,7.0]
[1757891595900,6.1,241.23,241.12,7.0]
[1757891596499,6.1,241.23,241.12,10.47132113]
[1757891597101,6.1,241.28,241.14,3.47132113]
[1757891597397,7.46122934,241.28,241.16,7.0]
[1757891597601,7.46122934,241.28,241.17,3.47132113]
[1757891597996,7.46122934,241.28,241.18,7.0]
[1757891598397,7.46122934,241.28,241.18,10.47132113]
[1757891598903,6.1,241.27,241.18,7.0]
[1757891599203,6.1,241.27,241.15,3.47132113]
[1757891599403,1.36122934,241.25,241.15,7.0]
[1757891599900,1.36122934,241.25,241.15,10.47132113]
[1757891600501,6.1,241.27,241.15,7.0]
[1757891600696,1.36122934,241.25,241.15,7.0]
[1757891600898,1.36122934,241.2,241.11,7.0]
[1757891601100,6.1,241.19,241.11,7.0]
[1757891601393,6.1,241.19,241.09,3.47132113]
[1757891601593,6.1,241.19,241.07,3.47132113]
[1757891601794,6.1,241.15,241.06,10.47132113]
[1757891605793,6.1,241.15,241.06,7.0]
[1757891605998,1.36122934,241.16,241.02,10.47132113]
[1757891606199,6.1,241.15,241.02,10.47132113]
[1757891606394,1.36122934,241.16,241.02,10.47132113]
[1757891606604,6.1,241.11,241.02,10.47132113]
[1757891607607,6.1,241.11,241.02,7.0]
[1757891608502,1.36122934,241.12,241.02,7.0]
[1757891608898,1.36122934,241.12,241.02,10.47132113]
[1757891609604,7.46122934,241.12,241.02,10.47132113]
[1757891609797,7.46122934,241.12,241.02,7.0]
[1757891611306,6.1,241.07,241.01,3.47132113]
[1757891611504,6.1,241.07,240.98,3.47132113]
[1757891612000,14.7,241.14,240.99,7.0]
[1757891612204,6.1,241.11,240.99,7.0]
[1757891612405,6.1,241.11,241.0,3.47462882]
[1757891612606,6.1,241.11,241.01,7.0]
[1757891616608,1.36122934,241.08,241.01,7.0]
[1757891617009,7.46122934,241.11,241.01,7.0]
[1757891618911,1.36122934,241.14,241.01,7.0]
[1757891619412,15.1,241.15,241.02,7.0]
[1757891619612,6.1,241.15,241.02,7.0]
[1757891620707,6.1,241.15,241.02,3.47462882]
[1757891620910,6.1,241.15,241.04,7.0]
[1757891621608,1.36122934,241.19,241.04,3.47462882]
[1757891621808,1.36122934,241.19,241.05,6.89]
[1757891622008,6.11,241.2,241.05,6.89]
[1757891622310,6.11,241.2,241.07,6.89]
[1757891623709,6.11,241.2,241.08,6.89]
[1757891625209,1.36122934,241.22,241.08,6.89]
[1757891625414,6.11,241.24,241.1,6.89]
[1757891625610,6.11,241.24,241.11,6.89]
[1757891625808,6.11,241.24,241.11,10.36462882]
[1757891626112,6.11,241.24,241.12,6.89]
[1757891626311,6.11,241.24,241.14,6.89]
[1757891628008,6.11,241.24,241.14,10.36462882]
[1757891628208,6.11,241.24,241.14,6.89]
[1757891629213,6.11,241.24,241.14,10.36462882]
[1757891629616,6.11,241.24,241.14,6.89]
[1757891632019,6.11,241.24,241.14,10.36462882]
[1757891633718,6.11,241.24,241.15,6.89]
[1757891634217,1.36122934,241.27,241.15,10.36462882]
[1757891634518,1.36122934,241.27,241.16,6.72]
[1757891635218,1.36122934,241.27,241.17,6.72]
[1757891635518,15.1,241.29,241.17,3.47462882]
[1757891635724,15.1,241.29,241.18,6.72]
[1757891636015,6.1,241.29,241.18,6.72]
[1757891636314,68.73330385,241.32,241.18,10.19462882]
[1757891636519,68.73330385,241.32,241.19,6.72]
[1757891636924,6.1,241.31,241.19,6.72]
[1757891642817,4.59080663,241.48,241.2,8.08122934]
[1757891643015,6.1,241.43,241.28,1.36122934]
[1757891643216,6.1,241.43,241.28,4.83585816]
[1757891643521,6.1,241.43,241.28,1.36122934]
[1757891644418,6.1,241.39,241.22,6.72]
[1757891645424,6.1,241.35,241.22,6.72]
[1757891645723,31.1,241.35,241.22,6.72]
[1757891645923,31.1,241.35,241.18,8.08122934]
[1757891645924,6.1,241.34,241.18,8.08122934]
[1757891646126,6.1,241.31,241.18,8.08122934]
[1757891646311,6.1,241.31,241.18,6.72]
[1757891647517,6.1,241.31,241.18,19.16505356]
[1757891648927,1.36122934,241.24,241.14,6.72]
[1757891649224,6.1,241.23,241.14,6.72]
[1757891651526,7.46122934,241.23,241.14,6.72]
[1757891652025,7.46122934,241.23,241.14,19.22306842]
[1757891653023,1.36122934,241.25,241.15,6.54]
[1757891653916,6.11,241.27,241.15,6.54]
[1757891654328,1.36122934,241.29,241.15,6.54]
[1757891654716,6.11,241.32,241.17,6.54]
[1757891656831,6.11,241.32,241.19,6.54]
[1757891657035,6.11,241.36,241.22,6.54]
[1757891657830,0.8703243,241.33,241.22,6.54]
[1757891659322,0.8703243,241.33,241.21,4.34495312]
[1757891659526,0.8703243,241.33,241.23,6.54]